bitfinex/quotes_BTCUSD_20251021
["timestamp","ask_amount","ask_price","bid_price","bid_amount"]
[1761067687261,1e-08,112600.0,112590.0,0.26745467]
[1761067687467,1e-08,112600.0,112590.0,0.26845467]
[1761067688072,1e-08,112600.0,112590.0,0.26645467]
[1761067688258,1e-08,112600.0,112590.0,0.26745467]
[1761067690055,1e-08,112600.0,112590.0,1.12521949]
[1761067690480,1e-08,112600.0,112590.0,0.26745467]
[1761067691800,1e-08,112600.0,112590.0,1.12521949]
[1761067692331,1e-08,112600.0,112590.0,0.26745467]
[1761067692919,1e-08,112600.0,112590.0,0.38689467]
[1761067693713,0.19391128,112600.0,112590.0,0.21025901]
[1761067693915,0.53391128,112600.0,112590.0,0.001]
[1761067694943,0.17763566,112590.0,112580.0,0.17765128]
[1761067695113,0.19392704,112590.0,112580.0,0.19541642]
[1761067695711,0.19392704,112590.0,112580.0,0.17765128]
[1761067696219,0.19392704,112590.0,112570.0,0.3059824]
[1761067696457,0.17765144,112580.0,112570.0,0.20925901]
[1761067696660,0.17765144,112580.0,112570.0,0.38692623]
[1761067697638,0.17765144,112580.0,112560.0,0.17817511]
[1761067697639,0.17766722,112570.0,112560.0,0.17817511]
[1761067697847,0.17766722,112570.0,112560.0,0.38739412]
[1761067698499,0.17766722,112570.0,112560.0,0.1198921]
[1761067698778,0.17766722,112570.0,112560.0,0.0004921]
[1761067698779,0.1939472,112570.0,112560.0,0.0004921]
[1761067699369,0.01627507,112570.0,112560.0,0.17817511]
[1761067699726,0.19394229,112570.0,112560.0,0.0004921]
[1761067699928,0.19393843,112570.0,112560.0,0.0004921]
[1761067700130,0.19397843,112570.0,112560.0,0.0004921]
[1761067700656,0.19397843,112570.0,112560.0,0.0014921]
[1761067700657,0.53397843,112570.0,112560.0,0.0014921]
[1761067700850,0.65337843,112570.0,112560.0,0.0014921]
[1761067701049,0.65337843,112570.0,112560.0,0.0004921]
[1761067701248,0.74319744,112570.0,112560.0,0.0004921]
[1761067702550,0.75319743,112570.0,112560.0,0.0004921]
[1761067702751,0.17773038,112530.0,112510.0,0.1816382]
[1761067702993,0.17774617,112520.0,112510.0,0.27160512]
[1761067703423,0.17774617,112520.0,112510.0,0.00318414]
[1761067704515,0.19674784,112520.0,112510.0,0.00318414]
[1761067704722,0.17772772,112540.0,112510.0,0.18194611]
[1761067704928,0.29708772,112540.0,112520.0,0.17774617]
[1761067705139,0.17773038,112530.0,112520.0,0.17774617]
[1761067705338,0.17773038,112530.0,112510.0,0.27076512]
[1761067705550,4e-05,112520.0,112510.0,0.27076512]
[1761067707262,8e-05,112520.0,112510.0,0.39016512]
[1761067707450,0.17773038,112530.0,112520.0,0.17773902]
[1761067709838,0.3094086,112540.0,112520.0,0.17773902]
[1761067710052,0.51770408,112550.0,112530.0,0.19550341]
[1761067710269,0.17769933,112550.0,112520.0,0.27644533]
[1761067710479,0.17771459,112540.0,112520.0,0.26755803]
[1761067710716,0.17773038,112530.0,112520.0,0.17774617]
[1761067710917,0.30596031,112540.0,112520.0,0.19347335]
[1761067711200,0.63707459,112540.0,112530.0,0.17773038]
[1761067711411,0.51775459,112540.0,112530.0,0.17773038]
[1761067711622,4e-05,112540.0,112530.0,0.17773038]
[1761067711833,4e-05,112540.0,112530.0,0.19550341]
[1761067712068,8e-05,112540.0,112530.0,0.19550341]
[1761067712232,8e-05,112540.0,112530.0,0.40468242]
[1761067712408,8e-05,112540.0,112530.0,0.38690939]
[1761067713397,8e-05,112540.0,112530.0,0.20917901]
[1761067713398,0.17779459,112540.0,112530.0,0.20917901]
[1761067713624,0.17779459,112540.0,112530.0,0.11936]
[1761067713853,8e-05,112540.0,112530.0,0.29709038]
[1761067714293,8e-05,112540.0,112530.0,0.29809038]
[1761067714519,0.17779459,112540.0,112530.0,0.29809038]
[1761067714746,0.17779459,112540.0,112530.0,0.29709038]
[1761067715200,0.17779459,112540.0,112530.0,0.11936]
[1761067715420,0.17773038,112530.0,112510.0,0.30611797]
[1761067715640,0.17773038,112530.0,112520.0,0.17774617]
[1761067715877,0.17773038,112530.0,112510.0,0.30611797]
[1761067716317,0.17773038,112530.0,112520.0,0.17774617]
[1761067716542,0.63711459,112540.0,112530.0,0.17773038]
[1761067716768,0.34008,112540.0,112530.0,0.17773038]
[1761067717068,0.51779459,112540.0,112530.0,0.19550341]
[1761067717278,8e-05,112540.0,112530.0,0.40464242]
[1761067717495,8e-05,112540.0,112530.0,0.38686939]
[1761067718429,0.17773038,112530.0,112520.0,0.17774617]
[1761067718658,0.17779459,112540.0,112530.0,0.17773038]
[1761067718878,8e-05,112540.0,112530.0,0.19609098]
[1761067719101,8e-05,112540.0,112530.0,0.28590999]
[1761067719322,0.00012,112540.0,112530.0,0.26991962]
[1761067720005,0.00016,112540.0,112530.0,0.26991962]
[1761067720443,0.17787459,112540.0,112530.0,0.26991962]
[1761067720650,0.17791459,112540.0,112530.0,0.00237023]
[1761067721062,0.17791459,112540.0,112530.0,0.18010061]
[1761067721856,0.17791459,112540.0,112530.0,0.00237023]
[1761067724622,0.29719459,112540.0,112530.0,0.00237023]
[1761067726322,0.31347877,112540.0,112530.0,0.00237023]
[1761067726725,0.31347877,112540.0,112530.0,0.18010061]
[1761067727271,0.19419877,112540.0,112530.0,0.00237023]
[1761067728805,0.19423877,112540.0,112530.0,0.00237023]
[1761067729446,0.19423877,112540.0,112530.0,0.18010061]
[1761067729855,0.19427877,112540.0,112530.0,0.00237023]
[1761067730475,0.64287207,112540.0,112530.0,0.00237023]
[1761067731447,0.70948154,112540.0,112530.0,0.00237023]
[1761067731697,0.67225306,112540.0,112530.0,0.00237023]
[1761067731917,0.65347877,112540.0,112530.0,0.00237023]
[1761067732396,0.67224661,112540.0,112530.0,0.00237023]
[1761067733891,0.65347877,112540.0,112530.0,0.00237023]
[1761067740536,0.67222677,112540.0,112530.0,0.00237023]
[1761067740739,0.53427877,112540.0,112530.0,0.18010061]
[1761067740988,0.65339877,112540.0,112530.0,0.00237023]
[1761067741192,0.65339877,112540.0,112530.0,0.26991962]
[1761067741193,0.01655521,112540.0,112530.0,0.26991962]
[1761067741568,0.00028,112540.0,112530.0,0.26991962]
[1761067743098,0.00028,112540.0,112530.0,0.27091962]
[1761067743315,0.17799459,112540.0,112530.0,0.27091962]
[1761067743693,0.17799459,112540.0,112530.0,0.00337023]
[1761067743909,0.19427693,112540.0,112530.0,0.00337023]
[1761067744108,0.17799459,112540.0,112530.0,0.18110061]
[1761067744719,0.17799459,112540.0,112530.0,0.00337023]
[1761067744893,0.19427942,112540.0,112530.0,0.00237023]
[1761067745092,0.19427942,112540.0,112530.0,0.18010061]
[1761067745297,0.17799459,112540.0,112530.0,0.18010061]
[1761067745495,0.19427792,112540.0,112530.0,0.00237023]
[1761067745698,0.53427792,112540.0,112530.0,0.00237023]
[1761067746275,0.53427792,112540.0,112530.0,0.18010061]
[1761067746276,0.17799459,112540.0,112530.0,0.18010061]
[1761067746616,0.17799459,112540.0,112530.0,0.19787364]
[1761067746817,0.17799459,112540.0,112530.0,0.18010061]
[1761067747042,0.00028,112540.0,112530.0,0.19787364]
[1761067747247,0.00028,112540.0,112530.0,0.981789]
[1761067747474,0.00028,112540.0,112530.0,0.96401597]
[1761067747673,8e-05,112570.0,112560.0,0.17768301]
[1761067747834,8e-05,112570.0,112560.0,0.31449131]
[1761067748033,0.01636619,112570.0,112560.0,0.29672301]
[1761067748259,0.01636619,112570.0,112560.0,0.38654202]
[1761067748470,8e-05,112570.0,112560.0,1.08063837]
[1761067748876,8e-05,112570.0,112560.0,1.08078628]
[1761067749474,8e-05,112570.0,112560.0,0.38668993]
[1761067750548,8e-05,112570.0,112560.0,0.38768993]
[1761067751718,8e-05,112570.0,112560.0,0.38668993]
[1761067751921,8e-05,112570.0,112560.0,1.08078628]
[1761067754285,8e-05,112570.0,112560.0,1.08178628]
[1761067754454,8e-05,112570.0,112560.0,1.42178628]
[1761067754908,8e-05,112570.0,112560.0,1.42078628]
[1761067755319,8e-05,112570.0,112560.0,1.42178628]
[1761067756165,8e-05,112570.0,112560.0,1.42278628]
[1761067756359,8e-05,112570.0,112560.0,0.72868993]
[1761067756566,8e-05,112570.0,112560.0,1.42278628]
[1761067756911,8e-05,112570.0,112560.0,4.45896856]
[1761067757087,8e-05,112570.0,112560.0,4.46896855]
[1761067757784,8e-05,112570.0,112560.0,4.47796854]
[1761067758218,8e-05,112570.0,112560.0,4.47996854]
[1761067758440,8e-05,112570.0,112560.0,3.78587219]
[1761067758662,8e-05,112570.0,112560.0,4.34092856]
[1761067758874,8e-05,112570.0,112560.0,1.30474628]
[1761067759091,8e-05,112570.0,112560.0,1.08266628]
[1761067759319,8e-05,112570.0,112560.0,1.42466628]
[1761067759548,8e-05,112570.0,112560.0,1.42266628]
[1761067759748,8e-05,112570.0,112560.0,1.42366628]
[1761067760003,8e-05,112570.0,112560.0,1.08366628]
[1761067760237,8e-05,112570.0,112560.0,1.08066628]
[1761067760440,8e-05,112570.0,112560.0,0.38956993]
[1761067760612,8e-05,112570.0,112560.0,0.38856993]
[1761067760862,8e-05,112570.0,112560.0,0.38656993]
[1761067761069,8e-05,112570.0,112560.0,0.38756993]
[1761067761293,8e-05,112570.0,112560.0,0.38856993]
[1761067761726,8e-05,112570.0,112560.0,0.38756993]
[1761067761929,8e-05,112570.0,112560.0,0.26864993]
[1761067762114,8e-05,112570.0,112560.0,0.38752993]
[1761067764145,0.00012,112570.0,112560.0,0.38752993]
[1761067764812,0.00012,112570.0,112560.0,1.08162628]
[1761067765441,0.00012,112570.0,112560.0,0.38752993]
[1761067765635,0.00012,112570.0,112560.0,1.08162628]
[1761067765966,0.00012,112570.0,112560.0,0.38752993]
[1761067767550,0.00012,112570.0,112560.0,1.08162628]
[1761067767748,0.00012,112570.0,112560.0,0.38752993]
[1761067770375,0.00012,112570.0,112560.0,1.08162628]
[1761067770610,0.00012,112570.0,112560.0,1.42162628]
[1761067772014,0.00012,112570.0,112560.0,0.72752993]
[1761067772223,0.00012,112570.0,112560.0,1.42162628]
[1761067772805,0.00012,112570.0,112560.0,0.72752993]
[1761067773207,0.00012,112570.0,112560.0,1.42162628]
[1761067773798,0.00012,112570.0,112560.0,1.57042628]
[1761067774449,0.00012,112570.0,112560.0,0.87632993]
[1761067774649,0.00012,112570.0,112560.0,1.57042628]
[1761067775414,0.00012,112570.0,112560.0,1.11154628]
[1761067775618,0.00012,112570.0,112560.0,1.23026628]
[1761067775860,0.00012,112570.0,112560.0,0.41744993]
[1761067776176,0.00012,112570.0,112560.0,1.23026628]
[1761067777966,0.00012,112570.0,112560.0,0.38736993]
[1761067778175,0.00012,112570.0,112560.0,1.08146628]
[1761067778987,0.00012,112570.0,112560.0,0.26864993]
[1761067779184,0.00012,112570.0,112560.0,0.38732993]
[1761067780909,0.00012,112570.0,112560.0,1.08142628]
[1761067783267,0.00012,112570.0,112560.0,0.38732993]
[1761067783476,0.00012,112570.0,112560.0,1.08142628]
[1761067788703,0.00012,112570.0,112560.0,0.38732993]
[1761067788907,0.00012,112570.0,112560.0,1.08142628]
[1761067790255,0.00012,112570.0,112560.0,0.38732993]
[1761067790670,0.01646109,112570.0,112560.0,0.38732993]
[1761067795340,0.00012,112570.0,112560.0,0.38732993]
[1761067795958,0.00012,112570.0,112560.0,1.24554025]
[1761067796718,0.00012,112570.0,112560.0,0.38732993]
[1761067797583,0.00012,112570.0,112560.0,0.53612993]
[1761067800344,0.00012,112570.0,112560.0,1.39434025]
[1761067800559,0.00012,112570.0,112560.0,4.62172253]
[1761067800560,1e-08,112570.0,112560.0,4.62172253]
[1761067800981,1e-08,112570.0,112560.0,0.6548322]
[1761067801198,1e-08,112570.0,112560.0,0.26864993]
[1761067801408,1e-08,112570.0,112560.0,0.38704993]
[1761067801621,1e-08,112570.0,112560.0,1.24426025]
[1761067801831,1e-08,112570.0,112560.0,1.2940634]
[1761067802256,1e-08,112570.0,112560.0,1.2930634]
[1761067802467,1e-08,112570.0,112560.0,1.24426025]
[1761067802877,1e-08,112570.0,112560.0,1.24526025]
[1761067803083,1e-08,112570.0,112560.0,1.2930634]
[1761067803294,1e-08,112570.0,112560.0,1.2940634]
[1761067803498,1e-08,112570.0,112560.0,0.38804993]
[1761067803701,1e-08,112570.0,112560.0,1.24726025]
[1761067804116,1e-08,112570.0,112560.0,0.38804993]
[1761067804522,1e-08,112570.0,112560.0,0.38904993]
[1761067805115,1e-08,112570.0,112560.0,1.24726025]
[1761067805557,1e-08,112570.0,112560.0,4.67124568]
[1761067805773,4.001e-05,112570.0,112560.0,4.69124566]
[1761067805996,0.20000001,112600.0,112590.0,0.51763566]
[1761067805997,1e-08,112600.0,112590.0,0.51763566]
[1761067806234,1e-08,112600.0,112590.0,1.62020727]
[1761067806485,1e-08,112600.0,112590.0,1.64020725]
[1761067806708,1e-08,112600.0,112590.0,1.67809831]
[1761067807199,1e-08,112600.0,112590.0,1.62020727]
[1761067807412,1e-08,112600.0,112590.0,0.60745467]
[1761067807643,0.1776199,112600.0,112590.0,0.08981901]
[1761067807851,1e-08,112600.0,112590.0,0.21213901]
[1761067808060,0.5176199,112600.0,112590.0,0.12232]
[1761067808260,0.5176199,112600.0,112590.0,0.12032]
[1761067808499,0.5176199,112600.0,112590.0,0.11932]
[1761067808703,0.5176199,112600.0,112590.0,0.29595566]
[1761067808906,0.5176199,112600.0,112590.0,0.11832]
[1761067809110,0.5176199,112600.0,112590.0,0.13608356]
[1761067809324,0.5176199,112600.0,112590.0,0.31371922]
[1761067809536,0.5176599,112600.0,112590.0,0.29595566]
[1761067809746,0.5176599,112600.0,112590.0,0.11832]
[1761067809935,0.5176599,112600.0,112590.0,0.13608356]
[1761067810346,0.17765144,112580.0,112560.0,0.17783092]
[1761067810563,0.17765144,112580.0,112570.0,0.08981901]
[1761067810765,0.17766722,112570.0,112560.0,0.20824692]
[1761067810912,0.17765144,112580.0,112560.0,0.38592993]
[1761067811113,0.18653144,112590.0,112570.0,0.17766722]
[1761067811522,0.17765144,112580.0,112570.0,0.17766722]
[1761067811733,0.17765144,112580.0,112560.0,0.38592993]
[1761067812405,0.17765144,112580.0,112570.0,0.17766722]
[1761067812606,0.18653144,112590.0,112570.0,0.17766722]
[1761067812809,0.17765144,112580.0,112570.0,0.17766722]
[1761067813416,0.17765144,112580.0,112560.0,0.38592993]
[1761067813548,0.17765144,112580.0,112570.0,0.17766722]
[1761067815188,4e-05,112580.0,112570.0,0.19543394]
[1761067815384,0.17769144,112580.0,112570.0,0.19543394]
[1761067815788,4e-05,112580.0,112570.0,0.19543394]
[1761067816002,4e-05,112580.0,112570.0,0.28525295]
[1761067816206,4e-05,112580.0,112570.0,0.26748623]
[1761067816368,4e-05,112580.0,112570.0,1.12569655]
[1761067816585,4e-05,112580.0,112570.0,1.46569655]
[1761067816887,4e-05,112580.0,112570.0,0.60748623]
[1761067817070,4e-05,112580.0,112570.0,0.26748623]
[1761067817551,4e-05,112580.0,112570.0,0.26848623]
[1761067817733,4e-05,112580.0,112570.0,0.26948623]
[1761067817969,4e-05,112580.0,112570.0,0.26848623]
[1761067818372,4e-05,112580.0,112570.0,0.26948623]
[1761067818571,4e-05,112580.0,112570.0,0.26848623]
[1761067818783,4e-05,112580.0,112570.0,0.26948623]
[1761067819032,4e-05,112580.0,112570.0,1.12669655]
[1761067819732,4e-05,112580.0,112570.0,0.26948623]
[1761067820282,4e-05,112580.0,112570.0,0.26848623]
[1761067820487,4e-05,112580.0,112570.0,0.26948623]
[1761067820690,4e-05,112580.0,112570.0,0.26848623]
[1761067820897,4e-05,112580.0,112570.0,0.26948623]
[1761067821211,4e-05,112580.0,112570.0,0.26848623]
[1761067821562,4e-05,112580.0,112570.0,0.26948623]
[1761067821756,8e-05,112580.0,112570.0,0.26948623]
[1761067822006,0.17773144,112580.0,112570.0,0.09081901]
[1761067822249,8e-05,112580.0,112570.0,0.38664623]
[1761067822450,8e-05,112580.0,112570.0,0.38764623]
[1761067822908,8e-05,112580.0,112570.0,0.38664623]
[1761067822909,0.17773144,112580.0,112570.0,0.38664623]
[1761067823112,8e-05,112580.0,112570.0,0.38764623]
[1761067823726,8e-05,112580.0,112570.0,0.38564623]
[1761067824998,8e-05,112580.0,112570.0,1.24385655]
[1761067825203,8e-05,112580.0,112570.0,1.62003883]
[1761067825805,8e-05,112580.0,112570.0,1.62103883]
[1761067826214,8e-05,112580.0,112570.0,1.58485655]
[1761067826420,8e-05,112580.0,112570.0,1.62003883]
[1761067826652,8e-05,112580.0,112570.0,1.62203883]
[1761067827078,8e-05,112580.0,112570.0,1.62303883]
[1761067827287,8e-05,112580.0,112570.0,1.62203883]
[1761067827505,8e-05,112580.0,112570.0,0.76382851]
[1761067827718,1e-08,112600.0,112590.0,0.17763566]
[1761067827945,1e-08,112600.0,112590.0,1.61996727]
[1761067828778,1e-08,112600.0,112590.0,0.76175695]
[1761067828998,1e-08,112600.0,112590.0,1.62096727]
[1761067829179,1e-08,112600.0,112590.0,1.58478499]
[1761067829435,1e-08,112600.0,112590.0,0.38657467]
[1761067829896,1e-08,112600.0,112590.0,1.24478499]
[1761067830104,1e-08,112600.0,112590.0,0.38657467]
[1761067830544,1e-08,112600.0,112590.0,1.24578499]
[1761067831287,1e-08,112600.0,112590.0,0.38757467]
[1761067831489,1e-08,112600.0,112590.0,1.24578499]
[1761067831716,1e-08,112600.0,112590.0,0.38757467]
[1761067832552,1e-08,112600.0,112590.0,0.38657467]
[1761067832758,1e-08,112600.0,112590.0,0.38757467]
[1761067833727,1e-08,112600.0,112590.0,0.38657467]
[1761067833932,1e-08,112600.0,112590.0,0.38557467]
[1761067834333,1e-08,112600.0,112590.0,0.38657467]
[1761067835081,1e-08,112600.0,112590.0,1.24478499]
[1761067836777,1e-08,112600.0,112590.0,0.38657467]
[1761067837632,1e-08,112600.0,112590.0,1.24478499]
[1761067837882,1e-08,112600.0,112590.0,0.38657467]
[1761067838637,1e-08,112600.0,112590.0,1.24478499]
[1761067839846,1e-08,112600.0,112590.0,0.38657467]
[1761067840092,4.001e-05,112600.0,112590.0,0.38657467]
[1761067840500,4.001e-05,112600.0,112590.0,1.24478499]
[1761067841770,4.001e-05,112600.0,112590.0,0.38657467]
[1761067842915,0.1776599,112600.0,112590.0,0.11912]
[1761067843132,0.1776599,112600.0,112590.0,0.001]
[1761067843525,4.001e-05,112600.0,112590.0,0.17763566]
[1761067843744,4.001e-05,112600.0,112590.0,0.26745467]
[1761067843950,0.1776599,112600.0,112590.0,0.26745467]
[1761067845166,0.1776599,112600.0,112590.0,0.08981901]
[1761067845417,0.1776599,112600.0,112590.0,0.26745467]
[1761067845619,4.001e-05,112600.0,112590.0,0.26745467]
[1761067845965,0.1776599,112600.0,112590.0,0.26745467]
[1761067846910,4.001e-05,112600.0,112590.0,0.26745467]
[1761067848416,0.1776599,112600.0,112590.0,0.26745467]
[1761067848627,0.1776599,112600.0,112590.0,0.08981901]
[1761067848832,0.1776599,112600.0,112590.0,0.26745467]
[1761067849030,4.001e-05,112600.0,112590.0,0.26745467]
[1761067849277,0.1776599,112600.0,112590.0,0.26745467]
[1761067849841,0.1776599,112600.0,112590.0,0.38533467]
[1761067850044,0.1776599,112600.0,112580.0,0.29549102]
[1761067850247,0.1776599,112600.0,112590.0,0.17763566]
[1761067850455,4.001e-05,112600.0,112590.0,0.17763566]
[1761067850664,4.001e-05,112600.0,112590.0,0.19539922]
[1761067851315,4.001e-05,112600.0,112590.0,0.28521823]
[1761067851516,4.001e-05,112600.0,112590.0,0.26745467]
[1761067852066,0.1776599,112600.0,112580.0,0.29549102]
[1761067852265,0.1776599,112600.0,112580.0,0.38531003]
[1761067852609,0.1776599,112600.0,112590.0,0.17763566]
[1761067853172,4.001e-05,112600.0,112590.0,0.17763566]
[1761067853374,4.001e-05,112600.0,112590.0,0.28521823]
[1761067853575,4.001e-05,112600.0,112590.0,0.26745467]
[1761067859422,4.001e-05,112600.0,112590.0,0.26845467]
[1761067861070,4.001e-05,112600.0,112590.0,0.96144378]
[1761067861686,8.001e-05,112600.0,112590.0,0.96144378]
[1761067862101,8.001e-05,112600.0,112590.0,0.26845467]
[1761067862306,0.00012001,112600.0,112590.0,0.96144378]
[1761067862843,0.00012001,112600.0,112590.0,0.26845467]
[1761067863048,0.00012001,112600.0,112590.0,1.07916378]
[1761067863862,0.00012001,112600.0,112590.0,0.38617467]
[1761067864071,0.00012001,112600.0,112590.0,1.07916378]
[1761067864218,1e-08,112600.0,112590.0,1.07916378]
[1761067864455,1e-08,112600.0,112590.0,2.14833517]
[1761067864846,1e-08,112600.0,112590.0,5.15833516]
[1761067865034,1e-08,112600.0,112590.0,5.16833515]
[1761067865246,1e-08,112600.0,112590.0,5.2152262]
[1761067865652,1e-08,112600.0,112590.0,3.78335693]
[1761067865809,1e-08,112600.0,112590.0,4.40650711]
[1761067866006,1e-08,112600.0,112590.0,1.30244378]
[1761067866219,1e-08,112600.0,112590.0,1.42212378]
[1761067866399,1e-08,112600.0,112590.0,1.42012378]
[1761067867296,1e-08,112600.0,112590.0,0.26945467]
[1761067867473,1e-08,112600.0,112590.0,1.08012378]
[1761067867620,1e-08,112600.0,112590.0,1.41812378]
[1761067867821,1e-08,112600.0,112590.0,1.42012378]
[1761067868017,1e-08,112600.0,112590.0,1.50418713]
[1761067868286,1e-08,112600.0,112590.0,1.50318713]
[1761067868491,1e-08,112600.0,112590.0,1.45530606]
[1761067868818,1e-08,112600.0,112590.0,1.50418713]
[1761067869221,1e-08,112600.0,112590.0,5.19517624]
[1761067869414,1e-08,112600.0,112590.0,4.50618713]
[1761067870022,1e-08,112600.0,112590.0,5.19917624]
[1761067870297,1e-08,112600.0,112590.0,5.36797622]
[1761067870499,1e-08,112600.0,112590.0,4.66498712]
[1761067870699,1e-08,112600.0,112590.0,4.65498713]
[1761067870832,1e-08,112600.0,112590.0,4.66498712]
[1761067871056,1e-08,112600.0,112590.0,4.65498713]
[1761067871264,1e-08,112600.0,112590.0,0.96444378]
[1761067871483,1e-08,112600.0,112590.0,1.08204378]
[1761067871861,1e-08,112600.0,112590.0,1.42204378]
[1761067872064,1e-08,112600.0,112590.0,1.08004378]
[1761067872313,1e-08,112600.0,112590.0,1.07804378]
[1761067872598,1e-08,112600.0,112590.0,0.38705467]
[1761067872746,1e-08,112600.0,112590.0,0.38605467]
[1761067872959,1e-08,112600.0,112590.0,0.09081901]
[1761067872960,0.1776199,112600.0,112590.0,0.09081901]
[1761067873158,0.1776199,112600.0,112590.0,0.38605467]
[1761067873159,1e-08,112600.0,112590.0,0.38605467]
[1761067873763,1e-08,112600.0,112590.0,0.38505467]
[1761067873965,1e-08,112600.0,112590.0,0.38705467]
[1761067874452,0.1776199,112600.0,112590.0,0.38605467]
[1761067874656,0.17763566,112590.0,112580.0,0.17765102]
[1761067874866,0.1776199,112600.0,112580.0,0.38503003]
[1761067875040,0.17763566,112590.0,112580.0,0.26747045]
[1761067875278,0.17763566,112590.0,112580.0,0.08981901]
[1761067875684,0.51766722,112570.0,112560.0,0.00014791]
[1761067876302,0.5538495,112570.0,112560.0,0.00014791]
[1761067876907,0.5726129,112570.0,112560.0,0.00014791]
[1761067877448,0.59899331,112570.0,112560.0,0.00014791]
[1761067877651,0.68881232,112570.0,112560.0,0.00014791]
[1761067878061,0.68781232,112570.0,112560.0,0.00014791]
[1761067878264,0.68881232,112570.0,112560.0,0.00014791]
[1761067878459,0.68885232,112570.0,112560.0,0.00014791]
[1761067879293,0.69885231,112570.0,112560.0,0.00014791]
[1761067879600,0.21388108,112550.0,112540.0,0.00203731]
[1761067879783,0.77126008,112550.0,112540.0,0.0021853]
[1761067880810,0.76126009,112550.0,112540.0,0.0021853]
[1761067880968,0.77126008,112550.0,112540.0,0.0021853]
[1761067881318,0.78126007,112550.0,112540.0,0.0021853]
[1761067881523,0.78126007,112550.0,112490.0,0.2953534]
[1761067881524,0.17776197,112510.0,112490.0,0.2953534]
[1761067881643,0.17776197,112510.0,112500.0,0.17777777]
[1761067881644,0.51776197,112510.0,112500.0,0.17777777]
[1761067881858,0.17777777,112500.0,112490.0,0.3856638]
[1761067882090,0.34,112510.0,112500.0,0.17777777]
[1761067882293,0.17776197,112510.0,112500.0,0.08981901]
[1761067882529,0.34,112500.0,112490.0,0.12004879]
[1761067882728,0.51777777,112500.0,112490.0,0.29784237]
[1761067882934,0.34,112500.0,112490.0,0.29784237]
[1761067883143,0.51777777,112500.0,112490.0,0.29784237]
[1761067883399,0.54265908,112500.0,112490.0,0.29784237]
[1761067883588,0.54265908,112500.0,112490.0,0.00248879]
[1761067883749,0.54265908,112500.0,112490.0,0.00348879]
[1761067883958,0.66021908,112500.0,112490.0,0.00348879]
[1761067884317,0.34,112500.0,112490.0,0.18228237]
[1761067884516,0.17776151,112530.0,112500.0,0.17776236]
[1761067884656,0.63530617,112520.0,112510.0,0.17776197]
[1761067884848,0.02479266,112530.0,112520.0,0.17774617]
[1761067885046,0.17773038,112530.0,112520.0,0.17774617]
[1761067885471,0.17773168,112530.0,112510.0,0.26757471]
[1761067885681,0.20366811,112530.0,112510.0,0.26757471]
[1761067885903,0.20366811,112530.0,112520.0,0.17774617]
[1761067886099,0.54366811,112530.0,112520.0,0.17774617]
[1761067886531,0.54566811,112530.0,112520.0,0.17774617]
[1761067886754,0.34,112520.0,112510.0,0.26758098]
[1761067887162,0.51774617,112520.0,112510.0,0.26758098]
[1761067887351,0.34,112520.0,112510.0,0.26758098]
[1761067887728,0.17774617,112520.0,112510.0,0.26758098]
[1761067887939,0.20370811,112530.0,112510.0,0.26758098]
[1761067888135,0.17774617,112520.0,112510.0,0.08981901]
[1761067888334,0.17774617,112520.0,112510.0,0.26758098]
[1761067888536,0.17776718,112510.0,112490.0,0.29784237]
[1761067888740,0.17777777,112500.0,112490.0,0.0923078]
[1761067888942,0.51777777,112500.0,112490.0,0.00248879]
[1761067889339,0.34,112500.0,112490.0,0.18028237]
[1761067889524,0.51777777,112500.0,112490.0,0.18028237]
[1761067889742,0.51777777,112500.0,112490.0,0.19806172]
[1761067889935,0.51777777,112500.0,112490.0,0.00248879]
[1761067890141,0.51777777,112500.0,112490.0,0.18028237]
[1761067890341,0.001,112500.0,112490.0,0.28788073]
[1761067890544,0.001,112500.0,112490.0,1.08061049]
[1761067890749,0.17778617,112520.0,112500.0,0.17776375]
[1761067890989,0.17778617,112520.0,112510.0,0.17776197]
[1761067891190,0.51778617,112520.0,112510.0,0.18922346]
[1761067891673,0.51776197,112510.0,112500.0,0.08981901]
[1761067891879,0.51776197,112510.0,112500.0,0.26759678]
[1761067892090,0.34,112510.0,112500.0,0.26759678]
[1761067892303,0.17778617,112520.0,112510.0,0.17776197]
[1761067892519,0.51776197,112510.0,112500.0,0.08981901]
[1761067892731,0.17777777,112500.0,112490.0,0.12000879]
[1761067892949,0.17777777,112500.0,112490.0,0.0923078]
[1761067893155,0.51780197,112510.0,112490.0,0.27010138]
[1761067893562,0.17777777,112500.0,112490.0,0.0923078]
[1761067893778,0.17777777,112500.0,112490.0,0.00248879]
[1761067893993,0.63528197,112510.0,112500.0,0.17777777]
[1761067893994,4e-05,112510.0,112500.0,0.17777777]
[1761067894211,0.34004,112510.0,112500.0,0.38507678]
[1761067894421,4e-05,112510.0,112500.0,0.38507678]
[1761067894632,4e-05,112510.0,112500.0,1.07806589]
[1761067895063,8e-05,112510.0,112500.0,1.07806589]
[1761067895285,8e-05,112510.0,112500.0,2.111055]
[1761067895706,8e-05,112510.0,112500.0,1.41806589]
[1761067895927,8e-05,112510.0,112500.0,2.111055]
[1761067896143,4e-05,112520.0,112500.0,2.111055]
[1761067896144,1e-08,112520.0,112510.0,1.21075108]
[1761067896360,1e-08,112520.0,112510.0,4.30057009]
[1761067896574,1e-08,112520.0,112510.0,0.26758098]
[1761067896739,1e-08,112520.0,112510.0,1.07805009]
[1761067896925,1e-08,112520.0,112510.0,1.41805009]
[1761067897343,1e-08,112520.0,112510.0,1.42005009]
[1761067897499,1e-08,112520.0,112510.0,1.41905009]
[1761067897709,1e-08,112520.0,112510.0,1.42005009]
[1761067898080,1e-08,112520.0,112510.0,1.41905009]
[1761067898196,1e-08,112520.0,112510.0,0.96157009]
[1761067898400,1e-08,112520.0,112510.0,1.08001009]
[1761067898627,1e-08,112520.0,112510.0,0.38602098]
[1761067898628,4.001e-05,112520.0,112510.0,0.38602098]
[1761067898828,4.001e-05,112520.0,112510.0,1.08001009]
[1761067899276,4.001e-05,112520.0,112510.0,1.07901009]
[1761067899477,4.001e-05,112520.0,112510.0,1.07801009]
[1761067899674,4.001e-05,112520.0,112510.0,1.07901009]
[1761067899877,8.001e-05,112520.0,112510.0,1.08001009]
[1761067900082,8.001e-05,112520.0,112510.0,1.07801009]
[1761067900260,8.001e-05,112520.0,112510.0,1.07901009]
[1761067900478,8.001e-05,112520.0,112510.0,1.08001009]
[1761067900674,8.001e-05,112520.0,112510.0,1.07901009]
[1761067900860,8.001e-05,112520.0,112510.0,1.08001009]
[1761067901259,8.001e-05,112520.0,112510.0,1.07901009]
[1761067901491,8.001e-05,112520.0,112510.0,1.41901009]
[1761067902356,8.001e-05,112520.0,112510.0,1.42001009]
[1761067902928,8.001e-05,112520.0,112510.0,1.41901009]
[1761067903130,1e-08,112530.0,112520.0,0.51774617]
[1761067903329,1e-08,112550.0,112540.0,0.51771459]